{"text_format":"1","workbook":"xlsx","n_sheets":7,"sheets":["Exemplo 1","Exemplo 2","Exemplo 3","Exemplo 4","Planilha5","Exemplo 6","Exemplo 7"],"not_rendered":{"charts":0,"images":0,"macros":1,"external_links":0,"defined_names":0,"comments":0,"pivot_tables":0},"unopened":[],"bounds":{"document_bytes":16777216,"sheet_cells":100000,"rows_first":2000,"rows_last":500,"rows_between":2000,"halvings":0,"cell_chars":16384,"cell_head_chars":4096},"cells_cut":0,"cells_raw":0,"read":"whole","date_system":"1900"}

{"sheet":"Exemplo 1","index":0,"n_rows":5,"n_cols":3,"rows_kept":5,"cut":false,"hidden":false,"merged":[]}
["Nomes","Função TIRAR","Resultado"]
["Ana  Clara \u0001",".=TIRAR(A2)",{"$f":"CLEAN(A2)","v":"Ana  Clara "}]
["Fernando\u0001 de  Souza  Cruz",".=TIRAR(A3)",{"$f":"CLEAN(A3)","v":"Fernando de  Souza  Cruz"}]
["\u0001Gustavo Luis\u0001\u0001",".=TIRAR(A4)","Gustavo Luis"]
["\u0001\u0001\u0001\u0001Fernanda da Silva\u0001",".=TIRAR(A5)","Fernanda da Silva"]

{"sheet":"Exemplo 2","index":1,"n_rows":5,"n_cols":2,"rows_kept":5,"cut":false,"hidden":false,"merged":[]}
["Nomes","Resultados"]
["Ana  Clara dos Santos",{"$f":"CLEAN(A2)","v":"Ana  Clara dos Santos"}]
["Fernando de  Souza  Cruz",{"$f":"CLEAN(A3)","v":"Fernando de  Souza  Cruz"}]
["Gustavo Luis Santos Ferreira","Gustavo Luis Santos Ferreira"]
["Fernanda da Silva Oliveira Perez","Fernanda da Silva Oliveira Perez"]

{"sheet":"Exemplo 3","index":2,"n_rows":20,"n_cols":8,"rows_kept":20,"cut":false,"hidden":false,"merged":[]}
["Nomes","Resultados"]
["Ana      Clara \u0001",{"$f":"TRIM(CLEAN(A2))","v":"Ana Clara"}]
["Fernando\u0001       de  Souza  Cruz",{"$f":"TRIM(CLEAN(A3))","v":"Fernando de Souza Cruz"}]
["\u0001         Gustavo Luis\u0001\u0001","Gustavo Luis"]
["\u0001\u0001\u0001\u0001Fernanda        da Silva\u0001","Fernanda da Silva"]
[]
[]
[]
[]
[]
[]
[]
[]
[]
[]
[]
[]
[]
[]
[null,null,null,null,null,null,null,"c"]

{"sheet":"Exemplo 4","index":3,"n_rows":5,"n_cols":2,"rows_kept":5,"cut":false,"hidden":false,"merged":[]}
["Nomes","Resultados"]
["                              Ana      Clara \u0001",{"$f":"TRIM(CLEAN(A2))","v":"Ana Clara"}]
["Fernando\u0001       de  Souza  Cruz",{"$f":"TRIM(CLEAN(A3))","v":"Fernando de Souza Cruz"}]
["\u0001         Gustavo                  Luis\u0001\u0001","Gustavo Luis"]
["\u0001\u0001\u0001\u0001         Fernanda        da Silva\u0001","Fernanda da Silva"]

{"sheet":"Planilha5","index":4,"n_rows":5,"n_cols":2,"rows_kept":5,"cut":false,"hidden":false,"merged":[]}
["Nomes","Resultados"]
["Ana\u0001\u0001Clara\u0001",{"$f":"CLEAN(SUBSTITUTE(A2,\"_x0001_\",\" \"))","v":"Ana  Clara "}]
["Fernando\u0001de\u0001Souza \u0001Cruz",{"$f":"CLEAN(SUBSTITUTE(A3,\"_x0001_\",\" \"))","v":"Fernando de Souza  Cruz"}]
["Gustavo\u0001Luis\u0001\u0001","Gustavo Luis  "]
["Fernanda\u0001da\u0001Silva\u0001","Fernanda da Silva "]

{"sheet":"Exemplo 6","index":5,"n_rows":7,"n_cols":5,"rows_kept":7,"cut":false,"hidden":false,"merged":[]}
["Notas","Notas"]
["\u000110",{"$f":"VALUE(CLEAN(A2))","v":10},null,"Média:",{"$f":"AVERAGE(B2:B7)","v":8.5166666666666675}]
["9,5\u0001",{"$f":"VALUE(CLEAN(A3))","v":9.5}]
["\u0001\u00017\u0001",7]
["8\u0001",8]
["\u00019,6\u0001",9.6]
["7\u0001",7]

{"sheet":"Exemplo 7","index":6,"n_rows":20,"n_cols":9,"rows_kept":20,"cut":false,"hidden":false,"merged":[]}
["Nomes"]
["Ana  Clara "]
["Fernando de  Souza  Cruz"]
["Gustavo Luis"]
["Fernanda da Silva"]
[]
[]
[]
[]
[]
[]
[]
[]
[]
[]
[]
[]
[]
[]
[null,null,null,null,null,null,null,null,"c"]